[Event "Titled Tuesday Blitz June 6 Early 2023"]
[White "Janaszak, Dawid"]
[Black "Orlov, Georgi"]
[WhiteFideId "1119206"]
[BlackFideId "2011271"]
[WhiteElo "2220"]
[BlackElo "2637"]
[Result "1-0"]
[Round "11"]
[TimeControl "180+2"]
[Date "2023.06.06"]
[WhiteClock "0:00:32"]
[BlackClock "0:00:03"]
[Board "53"]

1. Nf3 {[%clk 0:03:00]}  Nf6 {[%clk 0:02:59]} 2. d4 {[%clk 0:03:00]}  e6 {[%clk 0:02:59]} 3. Bf4 {[%clk 0:03:00]}  c5 {[%clk 0:02:56]} 4. e3 {[%clk 0:02:55]}  Qb6 {[%clk 0:02:56]} 5. Na3 {[%clk 0:02:55]}  d5 {[%clk 0:02:45]} 6. Nb5 {[%clk 0:02:54]}  Na6 {[%clk 0:02:45]} 7. c3 {[%clk 0:02:49]}  c4 {[%clk 0:02:44]} 8. a4 {[%clk 0:02:49]}  Bd7 {[%clk 0:02:39]} 9. b3 {[%clk 0:02:34]}  Bxb5 {[%clk 0:02:24]} 10. axb5 {[%clk 0:02:33]}  Qxb5 {[%clk 0:02:25]} 11. bxc4 {[%clk 0:02:32]}  dxc4 {[%clk 0:02:25]} 12. Ne5 {[%clk 0:02:27]}  Rc8 {[%clk 0:02:24]} 13. Qa4 {[%clk 0:02:15]}  Qxa4 {[%clk 0:02:19]} 14. Rxa4 {[%clk 0:02:16]}  Nd5 {[%clk 0:02:14]} 15. Bxc4 {[%clk 0:02:14]}  Nxc3 {[%clk 0:02:11]} 16. Bxa6 {[%clk 0:02:07]}  bxa6 {[%clk 0:02:09]} 17. Rxa6 {[%clk 0:02:05]}  g5 {[%clk 0:01:46]} 18. Bg3 {[%clk 0:01:51]}  Ne4 {[%clk 0:01:18]} 19. O-O {[%clk 0:01:49]}  h5 {[%clk 0:01:18]} 20. h4 {[%clk 0:01:29]}  Rg8 {[%clk 0:00:57]} 21. Rxa7 {[%clk 0:01:15]}  Be7 {[%clk 0:00:53]} 22. Rb1 {[%clk 0:01:08]}  gxh4 {[%clk 0:00:39]} 23. Bf4 {[%clk 0:01:04]}  h3 {[%clk 0:00:38]} 24. g3 {[%clk 0:01:03]}  h4 {[%clk 0:00:29]} 25. Kh2 {[%clk 0:01:00]}  hxg3+ {[%clk 0:00:20]} 26. Bxg3 {[%clk 0:00:51]}  Bd6 {[%clk 0:00:08]} 27. Kxh3 {[%clk 0:00:39]}  Bxe5 {[%clk 0:00:07]} 28. dxe5 {[%clk 0:00:37]}  Rg5 {[%clk 0:00:03]} 29. Bf4 {[%clk 0:00:32]} 1-0


[Site "https://www.chess.com"]

[Event "Titled Tuesday Blitz June 6 Early 2023"]
[White "Goffredo_Fofi"]
[Black "Sielecki, Christof"]
[BlackFideId "4620437"]
[WhiteElo "2500"]
[BlackElo "2443"]
[Result "0-1"]
[Round "11"]
[TimeControl "180+2"]
[Date "2023.06.06"]
[WhiteClock "0:00:12"]
[BlackClock "0:00:58"]
[Board "54"]

1. d4 {[%clk 0:03:00]}  d5 {[%clk 0:02:59]} 2. Nf3 {[%clk 0:03:00]}  Nf6 {[%clk 0:02:58]} 3. Bf4 {[%clk 0:03:00]}  e6 {[%clk 0:02:58]} 4. e3 {[%clk 0:03:00]}  Bd6 {[%clk 0:02:59]} 5. Nbd2 {[%clk 0:03:00]}  O-O {[%clk 0:02:58]} 6. Bd3 {[%clk 0:02:58]}  c5 {[%clk 0:02:53]} 7. dxc5 {[%clk 0:02:58]}  Bxc5 {[%clk 0:02:50]} 8. O-O {[%clk 0:02:49]}  Nc6 {[%clk 0:02:50]} 9. c4 {[%clk 0:02:43]}  Bd6 {[%clk 0:02:50]} 10. Bg5 {[%clk 0:02:33]}  h6 {[%clk 0:02:48]} 11. Bh4 {[%clk 0:02:32]}  Ne5 {[%clk 0:02:45]} 12. Nxe5 {[%clk 0:02:30]}  Bxe5 {[%clk 0:02:46]} 13. Rb1 {[%clk 0:02:08]}  Bd7 {[%clk 0:02:23]} 14. Nf3 {[%clk 0:02:07]}  Bd6 {[%clk 0:02:18]} 15. cxd5 {[%clk 0:02:05]}  exd5 {[%clk 0:02:19]} 16. Be2 {[%clk 0:01:52]}  Be6 {[%clk 0:02:16]} 17. Nd4 {[%clk 0:01:47]}  Rc8 {[%clk 0:02:09]} 18. Nxe6 {[%clk 0:01:41]}  fxe6 {[%clk 0:02:09]} 19. Bd3 {[%clk 0:01:38]}  Qa5 {[%clk 0:01:57]} 20. a3 {[%clk 0:01:28]}  Qc7 {[%clk 0:01:51]} 21. Bg3 {[%clk 0:01:22]}  Bxg3 {[%clk 0:01:50]} 22. hxg3 {[%clk 0:01:23]}  Qe5 {[%clk 0:01:50]} 23. Be2 {[%clk 0:01:08]}  Rc7 {[%clk 0:01:50]} 24. Qb3 {[%clk 0:01:07]}  Ne4 {[%clk 0:01:45]} 25. Qb4 {[%clk 0:01:04]}  Rcf7 {[%clk 0:01:30]} 26. Bf3 {[%clk 0:00:48]}  Rxf3 {[%clk 0:01:03]} 27. gxf3 {[%clk 0:00:49]}  Rxf3 {[%clk 0:01:03]} 28. Kg2 {[%clk 0:00:23]}  Rxf2+ {[%clk 0:01:00]} 29. Kh1 {[%clk 0:00:13]}  Qxg3 {[%clk 0:00:58]} 30. Rxf2 {[%clk 0:00:12]}  Nxf2# {[%clk 0:00:58]} 0-1


[Site "https://www.chess.com"]

[Event "Titled Tuesday Blitz June 6 Early 2023"]
[White "Pham, Le Thao Nguyen"]
[Black "Gontcharov, Vladislav"]
[WhiteFideId "12401226"]
[BlackFideId "4123492"]
[WhiteElo "2286"]
[BlackElo "2420"]
[Result "1-0"]
[Round "11"]
[TimeControl "180+2"]
[Date "2023.06.06"]
[WhiteClock "0:00:43"]
[BlackClock "0:01:13"]
[Board "57"]

1. d4 {[%clk 0:02:57]}  Nf6 {[%clk 0:02:59]} 2. c4 {[%clk 0:02:55]}  e6 {[%clk 0:02:59]} 3. Nf3 {[%clk 0:02:53]}  c5 {[%clk 0:02:59]} 4. e3 {[%clk 0:02:42]}  d5 {[%clk 0:02:52]} 5. cxd5 {[%clk 0:02:34]}  Nc6 {[%clk 0:02:53]} 6. dxc6 {[%clk 0:02:19]}  Nd5 {[%clk 0:02:54]} 7. cxb7 {[%clk 0:02:04]}  Bxb7 {[%clk 0:02:20]} 8. Bb5+ {[%clk 0:02:00]}  Ke7 {[%clk 0:02:19]} 9. O-O {[%clk 0:01:48]}  Qb6 {[%clk 0:02:15]} 10. Be2 {[%clk 0:01:42]}  cxd4 {[%clk 0:02:10]} 11. exd4 {[%clk 0:01:34]}  f6 {[%clk 0:02:00]} 12. Nc3 {[%clk 0:01:33]}  Kf7 {[%clk 0:01:59]} 13. Qb3 {[%clk 0:01:24]}  Bb4 {[%clk 0:01:54]} 14. Bd2 {[%clk 0:01:22]}  a5 {[%clk 0:01:48]} 15. a3 {[%clk 0:01:17]}  Bxc3 {[%clk 0:01:48]} 16. Qxb6 {[%clk 0:01:14]}  Nxb6 {[%clk 0:01:49]} 17. Bxc3 {[%clk 0:01:14]}  Bd5 {[%clk 0:01:48]} 18. Nd2 {[%clk 0:01:11]}  Rhc8 {[%clk 0:01:43]} 19. Rfc1 {[%clk 0:01:11]}  Na4 {[%clk 0:01:34]} 20. Bf3 {[%clk 0:01:03]}  Rab8 {[%clk 0:01:30]} 21. Bxd5 {[%clk 0:01:01]}  exd5 {[%clk 0:01:31]} 22. Bxa5 {[%clk 0:00:56]}  Rxc1+ {[%clk 0:01:31]} 23. Rxc1 {[%clk 0:00:56]}  Rxb2 {[%clk 0:01:31]} 24. Nf1 {[%clk 0:00:56]}  Rb3 {[%clk 0:01:24]} 25. Bb4 {[%clk 0:00:53]}  Ke6 {[%clk 0:01:14]} 26. Ne3 {[%clk 0:00:48]}  f5 {[%clk 0:01:14]} 27. g3 {[%clk 0:00:47]}  g5 {[%clk 0:01:14]} 28. Rc6+ {[%clk 0:00:47]}  Kd7 {[%clk 0:01:13]} 29. Rd6+ {[%clk 0:00:43]} 1-0


[Site "https://www.chess.com"]

[Event "Titled Tuesday Blitz June 6 Early 2023"]
[White "Omelja, Artem"]
[Black "Bashirli, Saadat"]
[WhiteFideId "14119846"]
[BlackFideId "13429990"]
[WhiteElo "2404"]
[BlackElo "1408"]
[Result "1-0"]
[Round "11"]
[TimeControl "180+2"]
[Date "2023.06.06"]
[WhiteClock "0:00:17"]
[BlackClock "0:00:03"]
[Board "60"]

1. e4 {[%clk 0:02:55]}  c5 {[%clk 0:02:59]} 2. Nf3 {[%clk 0:02:55]}  g6 {[%clk 0:02:59]} 3. c3 {[%clk 0:02:46]}  Nf6 {[%clk 0:02:58]} 4. e5 {[%clk 0:02:42]}  Nd5 {[%clk 0:02:58]} 5. d4 {[%clk 0:02:39]}  cxd4 {[%clk 0:02:58]} 6. cxd4 {[%clk 0:02:39]}  d6 {[%clk 0:02:58]} 7. Nc3 {[%clk 0:02:36]}  Nxc3 {[%clk 0:02:53]} 8. bxc3 {[%clk 0:02:35]}  dxe5 {[%clk 0:02:53]} 9. Nxe5 {[%clk 0:02:36]}  Bg7 {[%clk 0:02:53]} 10. Bb5+ {[%clk 0:02:36]}  Bd7 {[%clk 0:02:51]} 11. Nxd7 {[%clk 0:02:35]}  Nxd7 {[%clk 0:02:48]} 12. O-O {[%clk 0:02:35]}  O-O {[%clk 0:02:48]} 13. Re1 {[%clk 0:02:33]}  a6 {[%clk 0:02:41]} 14. Be2 {[%clk 0:02:14]}  Rc8 {[%clk 0:02:25]} 15. Bb2 {[%clk 0:02:09]}  e6 {[%clk 0:02:18]} 16. Bf3 {[%clk 0:02:08]}  Qc7 {[%clk 0:02:18]} 17. Qb3 {[%clk 0:02:04]}  Nb6 {[%clk 0:01:58]} 18. Ba3 {[%clk 0:02:01]}  Rfd8 {[%clk 0:01:55]} 19. Bc5 {[%clk 0:01:59]}  Nd7 {[%clk 0:01:46]} 20. Be7 {[%clk 0:01:54]}  Re8 {[%clk 0:01:42]} 21. Bg5 {[%clk 0:01:47]}  Qxc3 {[%clk 0:01:38]} 22. Qxb7 {[%clk 0:01:47]}  Rc7 {[%clk 0:01:22]} 23. Qxa6 {[%clk 0:01:43]}  Qxd4 {[%clk 0:01:18]} 24. Rad1 {[%clk 0:01:42]}  Qa7 {[%clk 0:01:13]} 25. Qxa7 {[%clk 0:01:33]}  Rxa7 {[%clk 0:01:14]} 26. Bc6 {[%clk 0:01:33]}  Rxa2 {[%clk 0:00:32]} 27. Bxd7 {[%clk 0:01:13]}  Rea8 {[%clk 0:00:30]} 28. h3 {[%clk 0:01:01]}  h6 {[%clk 0:00:19]} 29. Be3 {[%clk 0:01:00]}  Kh7 {[%clk 0:00:14]} 30. Rb1 {[%clk 0:00:58]}  Ra1 {[%clk 0:00:13]} 31. Rxa1 {[%clk 0:00:58]}  Rxa1 {[%clk 0:00:13]} 32. Rxa1 {[%clk 0:00:58]}  Bxa1 {[%clk 0:00:14]} 33. Kf1 {[%clk 0:00:57]}  Kg7 {[%clk 0:00:13]} 34. Ke2 {[%clk 0:00:57]}  Bf6 {[%clk 0:00:13]} 35. Kd3 {[%clk 0:00:57]}  h5 {[%clk 0:00:10]} 36. f4 {[%clk 0:00:56]}  Kf8 {[%clk 0:00:08]} 37. Bc5+ {[%clk 0:00:55]}  Kg8 {[%clk 0:00:07]} 38. Ke4 {[%clk 0:00:49]}  Kh7 {[%clk 0:00:03]} 39. Bd4 {[%clk 0:00:46]}  Be7 {[%clk 0:00:04]} 40. Bb5 {[%clk 0:00:40]}  Kg8 {[%clk 0:00:02]} 41. Kd3 {[%clk 0:00:38]}  Kh7 {[%clk 0:00:02]} 42. Be5 {[%clk 0:00:38]}  Kg8 {[%clk 0:00:02]} 43. Bc6 {[%clk 0:00:37]}  Kh7 {[%clk 0:00:01]} 44. Kc4 {[%clk 0:00:38]}  Kg8 {[%clk 0:00:02]} 45. Kb5 {[%clk 0:00:38]}  Kh7 {[%clk 0:00:03]} 46. Kb6 {[%clk 0:00:38]}  Kg8 {[%clk 0:00:04]} 47. Kc7 {[%clk 0:00:39]}  Kh7 {[%clk 0:00:04]} 48. Kd7 {[%clk 0:00:39]}  Bh4 {[%clk 0:00:04]} 49. Ke8 {[%clk 0:00:39]}  Kg8 {[%clk 0:00:05]} 50. g4 {[%clk 0:00:27]}  hxg4 {[%clk 0:00:04]} 51. hxg4 {[%clk 0:00:28]}  Bg3 {[%clk 0:00:04]} 52. g5 {[%clk 0:00:29]}  Bh4 {[%clk 0:00:04]} 53. Ke7 {[%clk 0:00:29]}  Bg3 {[%clk 0:00:03]} 54. Be8 {[%clk 0:00:28]}  Kh7 {[%clk 0:00:03]} 55. Bxf7 {[%clk 0:00:26]}  Bh2 {[%clk 0:00:02]} 56. Bxe6 {[%clk 0:00:26]}  Bg3 {[%clk 0:00:02]} 57. Kf6 {[%clk 0:00:26]}  Bh2 {[%clk 0:00:01]} 58. Bf7 {[%clk 0:00:20]}  Bg3 {[%clk 0:00:01]} 59. Bxg6+ {[%clk 0:00:20]}  Kg8 {[%clk 0:00:02]} 60. Bf7+ {[%clk 0:00:20]}  Kh7 {[%clk 0:00:02]} 61. g6+ {[%clk 0:00:16]}  Kh6 {[%clk 0:00:02]} 62. g7 {[%clk 0:00:16]}  Bh4+ {[%clk 0:00:03]} 63. Ke6 {[%clk 0:00:17]}  Kh7 {[%clk 0:00:02]} 64. g8=Q+ {[%clk 0:00:17]}  Kh6 {[%clk 0:00:03]} 65. Qg6# {[%clk 0:00:17]} 1-0


[Site "https://www.chess.com"]

[Event "Titled Tuesday Blitz June 6 Early 2023"]
[White "Mogirzan, Matei-Valeriu"]
[Black "i_like_explosions"]
[WhiteFideId "1257455"]
[WhiteElo "1733"]
[BlackElo "2468"]
[Result "1-0"]
[Round "11"]
[TimeControl "180+2"]
[Date "2023.06.06"]
[WhiteClock "0:00:04"]
[BlackClock "0:00:14"]
[Board "61"]

1. e4 {[%clk 0:03:00]}  c5 {[%clk 0:02:59]} 2. Nf3 {[%clk 0:03:00]}  Nc6 {[%clk 0:02:58]} 3. Bb5 {[%clk 0:02:50]}  e6 {[%clk 0:02:57]} 4. O-O {[%clk 0:02:44]}  Nge7 {[%clk 0:02:56]} 5. Nc3 {[%clk 0:02:45]}  a6 {[%clk 0:02:56]} 6. Bxc6 {[%clk 0:02:45]}  Nxc6 {[%clk 0:02:56]} 7. d4 {[%clk 0:02:46]}  cxd4 {[%clk 0:02:55]} 8. Nxd4 {[%clk 0:02:47]}  d6 {[%clk 0:02:31]} 9. Be3 {[%clk 0:02:40]}  Be7 {[%clk 0:02:27]} 10. f4 {[%clk 0:02:37]}  O-O {[%clk 0:02:26]} 11. Kh1 {[%clk 0:02:35]}  Nxd4 {[%clk 0:02:19]} 12. Bxd4 {[%clk 0:02:32]}  b5 {[%clk 0:02:20]} 13. f5 {[%clk 0:02:23]}  Bb7 {[%clk 0:02:14]} 14. Qg4 {[%clk 0:02:06]}  e5 {[%clk 0:02:03]} 15. Be3 {[%clk 0:02:04]}  Bf6 {[%clk 0:01:59]} 16. Rad1 {[%clk 0:01:52]}  Qc7 {[%clk 0:01:53]} 17. Nd5 {[%clk 0:01:20]}  Bxd5 {[%clk 0:01:48]} 18. Rxd5 {[%clk 0:01:21]}  Rfd8 {[%clk 0:01:46]} 19. c3 {[%clk 0:01:15]}  Qc4 {[%clk 0:01:39]} 20. Rf3 {[%clk 0:01:01]}  Qxa2 {[%clk 0:01:30]} 21. h4 {[%clk 0:00:59]}  Qxb2 {[%clk 0:01:23]} 22. Qh5 {[%clk 0:00:52]}  Rd7 {[%clk 0:01:21]} 23. Bg5 {[%clk 0:00:22]}  Qb1+ {[%clk 0:00:41]} 24. Kh2 {[%clk 0:00:21]}  Qxe4 {[%clk 0:00:40]} 25. Bxf6 {[%clk 0:00:15]}  gxf6 {[%clk 0:00:28]} 26. Qh6 {[%clk 0:00:11]}  Qxf3 {[%clk 0:00:27]} 27. gxf3 {[%clk 0:00:10]}  a5 {[%clk 0:00:27]} 28. Qxf6 {[%clk 0:00:10]}  Ra6 {[%clk 0:00:23]} 29. Rd1 {[%clk 0:00:09]}  Kf8 {[%clk 0:00:23]} 30. Rg1 {[%clk 0:00:07]}  a4 {[%clk 0:00:20]} 31. Rg7 {[%clk 0:00:06]}  Rc7 {[%clk 0:00:12]} 32. Rxh7 {[%clk 0:00:05]}  Ke8 {[%clk 0:00:13]} 33. Rh8+ {[%clk 0:00:04]}  Kd7 {[%clk 0:00:13]} 34. Rd8+ {[%clk 0:00:04]}  Kc6 {[%clk 0:00:14]} 35. Rxd6+ {[%clk 0:00:05]}  Kb7 {[%clk 0:00:14]} 36. Rxa6 {[%clk 0:00:05]}  Rxc3 {[%clk 0:00:14]} 37. Qb6+ {[%clk 0:00:05]}  Kc8 {[%clk 0:00:14]} 38. Ra7 {[%clk 0:00:04]}  Rc2+ {[%clk 0:00:14]} 39. Kg3 {[%clk 0:00:04]}  a3 {[%clk 0:00:14]} 40. Qb7+ {[%clk 0:00:04]}  Kd8 {[%clk 0:00:14]} 41. Qd7# {[%clk 0:00:04]} 1-0


[Site "https://www.chess.com"]

[Event "Titled Tuesday Blitz June 6 Early 2023"]
[White "Ismayil, Malak"]
[Black "Girya, Olga"]
[WhiteFideId "13412604"]
[BlackFideId "4195752"]
[WhiteElo "1868"]
[BlackElo "2263"]
[Result "1-0"]
[Round "11"]
[TimeControl "180+2"]
[Date "2023.06.06"]
[WhiteClock "0:00:12"]
[BlackClock "0:00:01"]
[Board "64"]

1. e4 {[%clk 0:03:00]}  e5 {[%clk 0:02:59]} 2. Nf3 {[%clk 0:03:00]}  Nc6 {[%clk 0:02:59]} 3. Bc4 {[%clk 0:03:00]}  Bc5 {[%clk 0:02:59]} 4. d3 {[%clk 0:03:00]}  Nf6 {[%clk 0:02:58]} 5. Nc3 {[%clk 0:03:00]}  d6 {[%clk 0:02:56]} 6. h3 {[%clk 0:03:00]}  a6 {[%clk 0:02:53]} 7. O-O {[%clk 0:02:57]}  h6 {[%clk 0:02:49]} 8. Be3 {[%clk 0:02:56]}  Bxe3 {[%clk 0:02:23]} 9. fxe3 {[%clk 0:02:57]}  Be6 {[%clk 0:02:24]} 10. Bd5 {[%clk 0:02:51]}  O-O {[%clk 0:02:18]} 11. Qe1 {[%clk 0:02:50]}  Bxd5 {[%clk 0:02:12]} 12. exd5 {[%clk 0:02:51]}  Nb4 {[%clk 0:02:12]} 13. Qf2 {[%clk 0:02:40]}  Nbxd5 {[%clk 0:02:11]} 14. Nxd5 {[%clk 0:02:36]}  Nxd5 {[%clk 0:02:12]} 15. e4 {[%clk 0:02:37]}  Nf4 {[%clk 0:02:12]} 16. Kh2 {[%clk 0:02:37]}  Qd7 {[%clk 0:02:02]} 17. Nh4 {[%clk 0:02:35]}  Kh7 {[%clk 0:01:44]} 18. Qg3 {[%clk 0:02:31]}  g6 {[%clk 0:01:42]} 19. Rf2 {[%clk 0:02:26]}  c5 {[%clk 0:01:36]} 20. Raf1 {[%clk 0:02:26]}  Rg8 {[%clk 0:01:18]} 21. Qe3 {[%clk 0:02:00]}  Raf8 {[%clk 0:00:50]} 22. c3 {[%clk 0:01:36]}  f5 {[%clk 0:00:45]} 23. d4 {[%clk 0:01:31]}  cxd4 {[%clk 0:00:44]} 24. cxd4 {[%clk 0:01:31]}  fxe4 {[%clk 0:00:23]} 25. Qxe4 {[%clk 0:01:23]}  Qc6 {[%clk 0:00:23]} 26. d5 {[%clk 0:01:15]}  Qd7 {[%clk 0:00:19]} 27. Rf3 {[%clk 0:00:44]}  Qe7 {[%clk 0:00:19]} 28. g3 {[%clk 0:00:40]}  Kh8 {[%clk 0:00:15]} 29. Rxf4 {[%clk 0:00:34]}  Rxf4 {[%clk 0:00:11]} 30. Rxf4 {[%clk 0:00:33]}  g5 {[%clk 0:00:11]} 31. Nf5 {[%clk 0:00:29]}  Qf6 {[%clk 0:00:06]} 32. Rf2 {[%clk 0:00:27]}  Rc8 {[%clk 0:00:04]} 33. g4 {[%clk 0:00:18]}  Qg6 {[%clk 0:00:04]} 34. Ng3 {[%clk 0:00:17]}  Qg7 {[%clk 0:00:03]} 35. Qf5 {[%clk 0:00:17]}  Rd8 {[%clk 0:00:02]} 36. Qf6 {[%clk 0:00:16]}  Qxf6 {[%clk 0:00:01]} 37. Rxf6 {[%clk 0:00:17]}  Kg7 {[%clk 0:00:02]} 38. Re6 {[%clk 0:00:17]}  Rd7 {[%clk 0:00:02]} 39. Nf5+ {[%clk 0:00:18]}  Kf7 {[%clk 0:00:02]} 40. Rxh6 {[%clk 0:00:19]}  e4 {[%clk 0:00:02]} 41. Nxd6+ {[%clk 0:00:18]}  Kg7 {[%clk 0:00:02]} 42. Nf5+ {[%clk 0:00:18]}  Kg8 {[%clk 0:00:03]} 43. Rg6+ {[%clk 0:00:16]}  Kf8 {[%clk 0:00:02]} 44. Rf6+ {[%clk 0:00:14]}  Kg8 {[%clk 0:00:02]} 45. d6 {[%clk 0:00:13]}  Rd8 {[%clk 0:00:01]} 46. Re6 {[%clk 0:00:13]}  Rc8 {[%clk 0:00:01]} 47. Ne7+ {[%clk 0:00:12]} 1-0


[Site "https://www.chess.com"]

[Event "Titled Tuesday Blitz June 6 Early 2023"]
[White "Zaitsev, Alexander"]
[Black "Aldokhin, Ivan"]
[WhiteFideId "4164490"]
[BlackFideId "24115720"]
[WhiteElo "2373"]
[BlackElo "2322"]
[Result "1-0"]
[Round "11"]
[TimeControl "180+2"]
[Date "2023.06.06"]
[WhiteClock "0:00:15"]
[BlackClock "0:00:02"]
[Board "65"]

1. e4 {[%clk 0:03:00]}  c5 {[%clk 0:02:58]} 2. Nf3 {[%clk 0:03:00]}  g6 {[%clk 0:02:58]} 3. d4 {[%clk 0:02:57]}  cxd4 {[%clk 0:02:58]} 4. Qxd4 {[%clk 0:02:58]}  Nf6 {[%clk 0:02:57]} 5. Nc3 {[%clk 0:02:56]}  Nc6 {[%clk 0:02:57]} 6. Qa4 {[%clk 0:02:57]}  d6 {[%clk 0:02:37]} 7. e5 {[%clk 0:02:57]}  Ng4 {[%clk 0:02:16]} 8. Bb5 {[%clk 0:02:33]}  Nxe5 {[%clk 0:02:03]} 9. Nxe5 {[%clk 0:02:33]}  dxe5 {[%clk 0:02:00]} 10. Bxc6+ {[%clk 0:02:29]}  bxc6 {[%clk 0:01:57]} 11. Qxc6+ {[%clk 0:02:30]}  Bd7 {[%clk 0:01:55]} 12. Qc5 {[%clk 0:02:22]}  Bg7 {[%clk 0:01:48]} 13. O-O {[%clk 0:02:15]}  O-O {[%clk 0:01:45]} 14. Rd1 {[%clk 0:02:14]}  e6 {[%clk 0:01:26]} 15. Qd6 {[%clk 0:01:43]}  Qa5 {[%clk 0:00:39]} 16. b4 {[%clk 0:01:20]}  Qb6 {[%clk 0:00:26]} 17. Qxb6 {[%clk 0:01:15]}  axb6 {[%clk 0:00:27]} 18. Rxd7 {[%clk 0:01:15]}  e4 {[%clk 0:00:23]} 19. Bb2 {[%clk 0:01:05]}  Rfc8 {[%clk 0:00:24]} 20. Nd1 {[%clk 0:00:43]}  Bxb2 {[%clk 0:00:24]} 21. Nxb2 {[%clk 0:00:44]}  Rxc2 {[%clk 0:00:24]} 22. Nd1 {[%clk 0:00:39]}  Raxa2 {[%clk 0:00:22]} 23. Rxa2 {[%clk 0:00:40]}  Rxa2 {[%clk 0:00:22]} 24. Kf1 {[%clk 0:00:36]}  f5 {[%clk 0:00:19]} 25. Rd6 {[%clk 0:00:34]}  Kf7 {[%clk 0:00:05]} 26. Rxb6 {[%clk 0:00:34]}  Ke7 {[%clk 0:00:04]} 27. Ke1 {[%clk 0:00:34]}  f4 {[%clk 0:00:03]} 28. Rb7+ {[%clk 0:00:33]}  Kd6 {[%clk 0:00:03]} 29. Rxh7 {[%clk 0:00:33]}  Ra1 {[%clk 0:00:03]} 30. Rg7 {[%clk 0:00:28]}  Kd5 {[%clk 0:00:02]} 31. Rxg6 {[%clk 0:00:28]}  e5 {[%clk 0:00:03]} 32. h4 {[%clk 0:00:26]}  Rb1 {[%clk 0:00:02]} 33. Rb6 {[%clk 0:00:21]}  Kc4 {[%clk 0:00:02]} 34. Kd2 {[%clk 0:00:20]}  Ra1 {[%clk 0:00:02]} 35. h5 {[%clk 0:00:18]}  Ra2+ {[%clk 0:00:02]} 36. Ke1 {[%clk 0:00:14]}  Ra7 {[%clk 0:00:03]} 37. h6 {[%clk 0:00:14]}  Kd3 {[%clk 0:00:03]} 38. Rd6+ {[%clk 0:00:14]}  Kc4 {[%clk 0:00:02]} 39. b5 {[%clk 0:00:13]}  Kxb5 {[%clk 0:00:02]} 40. Rd5+ {[%clk 0:00:14]}  Kc4 {[%clk 0:00:02]} 41. Rxe5 {[%clk 0:00:14]}  Kd4 {[%clk 0:00:03]} 42. Rf5 {[%clk 0:00:15]}  Rh7 {[%clk 0:00:03]} 43. Rxf4 {[%clk 0:00:15]}  Rxh6 {[%clk 0:00:03]} 44. Ke2 {[%clk 0:00:15]}  Rc6 {[%clk 0:00:02]} 45. Ne3 {[%clk 0:00:15]}  Ra6 {[%clk 0:00:02]} 46. Rf5 {[%clk 0:00:14]}  Ra2+ {[%clk 0:00:02]} 47. Ke1 {[%clk 0:00:14]}  Ra1+ {[%clk 0:00:02]} 48. Nd1 {[%clk 0:00:15]}  Ra2 {[%clk 0:00:01]} 49. Rf4 {[%clk 0:00:15]}  Ra1 {[%clk 0:00:02]} 50. f3 {[%clk 0:00:15]}  Kd3 {[%clk 0:00:02]} 51. Rxe4 {[%clk 0:00:15]}  Rc1 {[%clk 0:00:02]} 52. g4 {[%clk 0:00:14]}  Rc2 {[%clk 0:00:02]} 53. Nf2+ {[%clk 0:00:13]}  Kc3 {[%clk 0:00:02]} 54. Kf1 {[%clk 0:00:13]}  Rc1+ {[%clk 0:00:01]} 55. Kg2 {[%clk 0:00:13]}  Rc2 {[%clk 0:00:02]} 56. g5 {[%clk 0:00:14]}  Kd2 {[%clk 0:00:02]} 57. Rg4 {[%clk 0:00:14]}  Rc7 {[%clk 0:00:02]} 58. g6 {[%clk 0:00:14]}  Rg7 {[%clk 0:00:03]} 59. Ne4+ {[%clk 0:00:15]}  Ke3 {[%clk 0:00:04]} 60. Nd6 {[%clk 0:00:15]}  Rg8 {[%clk 0:00:03]} 61. g7 {[%clk 0:00:15]}  Ke2 {[%clk 0:00:03]} 62. Nf5 {[%clk 0:00:15]}  Kd3 {[%clk 0:00:03]} 63. Ne7 {[%clk 0:00:16]}  Re8 {[%clk 0:00:02]} 64. g8=Q {[%clk 0:00:16]}  Rxe7 {[%clk 0:00:03]} 65. Qd8+ {[%clk 0:00:16]}  Kc2 {[%clk 0:00:02]} 66. Qxe7 {[%clk 0:00:15]} 1-0


[Site "https://www.chess.com"]

[Event "Titled Tuesday Blitz June 6 Early 2023"]
[White "Gavrilov, Maxim"]
[Black "Jovic, Stanoje"]
[WhiteFideId "24271454"]
[BlackFideId "905020"]
[WhiteElo "1969"]
[BlackElo "2236"]
[Result "1-0"]
[Round "11"]
[TimeControl "180+2"]
[Date "2023.06.06"]
[WhiteClock "0:00:25"]
[BlackClock "0:00:05"]
[Board "66"]

1. Nc3 {[%clk 0:02:54]}  d5 {[%clk 0:02:57]} 2. d4 {[%clk 0:02:54]}  Nf6 {[%clk 0:02:55]} 3. Bf4 {[%clk 0:02:54]}  e6 {[%clk 0:02:55]} 4. e3 {[%clk 0:02:52]}  Bd6 {[%clk 0:02:55]} 5. Bxd6 {[%clk 0:02:50]}  cxd6 {[%clk 0:02:54]} 6. Be2 {[%clk 0:02:48]}  O-O {[%clk 0:02:53]} 7. Nf3 {[%clk 0:02:47]}  Nc6 {[%clk 0:02:53]} 8. O-O {[%clk 0:02:47]}  Bd7 {[%clk 0:02:53]} 9. a3 {[%clk 0:02:46]}  Rc8 {[%clk 0:02:53]} 10. h3 {[%clk 0:02:37]}  Na5 {[%clk 0:02:52]} 11. Nb5 {[%clk 0:02:35]}  a6 {[%clk 0:02:43]} 12. Nxd6 {[%clk 0:02:27]}  Rc6 {[%clk 0:02:41]} 13. b4 {[%clk 0:02:22]}  Rxd6 {[%clk 0:02:39]} 14. bxa5 {[%clk 0:02:23]}  Qxa5 {[%clk 0:02:39]} 15. Ne5 {[%clk 0:02:22]}  Ba4 {[%clk 0:02:35]} 16. Qd3 {[%clk 0:02:15]}  Rc8 {[%clk 0:02:27]} 17. c4 {[%clk 0:02:15]}  Ne4 {[%clk 0:02:09]} 18. c5 {[%clk 0:02:12]}  Rdd8 {[%clk 0:01:50]} 19. Rfb1 {[%clk 0:02:03]}  f6 {[%clk 0:01:38]} 20. Nf3 {[%clk 0:01:57]}  Nc3 {[%clk 0:01:10]} 21. Rb4 {[%clk 0:01:48]}  Nxe2+ {[%clk 0:01:04]} 22. Qxe2 {[%clk 0:01:48]}  Bb5 {[%clk 0:01:04]} 23. Qb2 {[%clk 0:01:47]}  Qc7 {[%clk 0:01:00]} 24. a4 {[%clk 0:01:43]}  Bc6 {[%clk 0:01:00]} 25. Rb6 {[%clk 0:01:43]}  Re8 {[%clk 0:00:58]} 26. Ne1 {[%clk 0:01:38]}  e5 {[%clk 0:00:57]} 27. Nd3 {[%clk 0:01:38]}  e4 {[%clk 0:00:49]} 28. Nb4 {[%clk 0:01:37]}  f5 {[%clk 0:00:43]} 29. Nxc6 {[%clk 0:01:36]}  bxc6 {[%clk 0:00:43]} 30. Rxa6 {[%clk 0:01:30]}  f4 {[%clk 0:00:43]} 31. Rb6 {[%clk 0:01:26]}  f3 {[%clk 0:00:41]} 32. g3 {[%clk 0:01:24]}  Qd7 {[%clk 0:00:38]} 33. Kh2 {[%clk 0:01:18]}  Re6 {[%clk 0:00:33]} 34. Rg1 {[%clk 0:01:10]}  Rh6 {[%clk 0:00:29]} 35. g4 {[%clk 0:01:09]}  Qc7+ {[%clk 0:00:26]} 36. Rg3 {[%clk 0:01:05]}  Rg6 {[%clk 0:00:20]} 37. Rb7 {[%clk 0:00:57]}  Qd8 {[%clk 0:00:19]} 38. Qb6 {[%clk 0:00:57]}  Qh4 {[%clk 0:00:17]} 39. Rb8 {[%clk 0:00:53]}  Rxb8 {[%clk 0:00:17]} 40. Qxb8+ {[%clk 0:00:54]}  Kf7 {[%clk 0:00:17]} 41. Qc7+ {[%clk 0:00:47]}  Kg8 {[%clk 0:00:14]} 42. a5 {[%clk 0:00:40]}  h5 {[%clk 0:00:14]} 43. a6 {[%clk 0:00:40]}  hxg4 {[%clk 0:00:12]} 44. a7 {[%clk 0:00:37]}  gxh3 {[%clk 0:00:08]} 45. Qc8+ {[%clk 0:00:28]}  Kh7 {[%clk 0:00:08]} 46. Qxh3 {[%clk 0:00:28]}  Rh6 {[%clk 0:00:05]} 47. Qxh4 {[%clk 0:00:25]} 1-0


[Site "https://www.chess.com"]